[Event "*** Titled Tuesday Blitz"]
[Site "Chess.com"]
[Date "2021.04.06"]
[Round "1"]
[White "kleopl"]
[Black "vrekhson"]
[Result "1-0"]
[WhiteElo "2552"]
[BlackElo "2229"]
[TimeControl "180+1"]
[EndTime "10:03:43 PDT"]
[Termination "kleopl won by resignation"]

1. e4 {[%clk 0:02:59.6]} 1... c5 {[%clk 0:02:54.8]} 2. Nc3 {[%clk 0:02:59.1]}
2... a6 {[%clk 0:02:54.6]} 3. d4 {[%clk 0:02:55.6]} 3... cxd4 {[%clk 0:02:54.4]}
4. Qxd4 {[%clk 0:02:56.5]} 4... Nc6 {[%clk 0:02:52.2]} 5. Qd2 {[%clk 0:02:56.5]}
5... e6 {[%clk 0:02:52.5]} 6. f3 {[%clk 0:02:54.2]} 6... d6 {[%clk 0:02:48.7]}
7. b3 {[%clk 0:02:53.2]} 7... Nf6 {[%clk 0:02:48.7]} 8. Bb2 {[%clk 0:02:53.3]}
8... Be7 {[%clk 0:02:46.3]} 9. O-O-O {[%clk 0:02:53.2]} 9... O-O {[%clk
0:02:46]} 10. g4 {[%clk 0:02:53.5]} 10... b5 {[%clk 0:02:40.5]} 11. Kb1 {[%clk
0:02:52.9]} 11... Bb7 {[%clk 0:02:36.4]} 12. h4 {[%clk 0:02:51.3]} 12... Qc7
{[%clk 0:02:35.6]} 13. h5 {[%clk 0:02:50.7]} 13... Nd7 {[%clk 0:02:20.1]} 14. g5
{[%clk 0:02:45.7]} 14... b4 {[%clk 0:02:10.2]} 15. Na4 {[%clk 0:02:42.1]} 15...
Nce5 {[%clk 0:01:59.7]} 16. Qxb4 {[%clk 0:02:26.2]} 16... d5 {[%clk 0:01:54.2]}
17. Qxe7 {[%clk 0:02:20.9]} 17... Bc6 {[%clk 0:01:46.8]} 18. Nc3 {[%clk
0:02:03.7]} 18... d4 {[%clk 0:01:40]} 19. Rxd4 {[%clk 0:02:00.4]} 19... Rfe8
{[%clk 0:01:39.7]} 20. Qa3 {[%clk 0:01:54.4]} 20... Nb6 {[%clk 0:01:31.4]} 21.
Qd6 {[%clk 0:01:46]} 21... Qb7 {[%clk 0:01:31.2]} 22. Qxe5 {[%clk 0:01:43.6]}
1-0

[Event "*** Titled Tuesday Blitz"]
[Site "Chess.com"]
[Date "2021.04.06"]
[Round "1"]
[White "Chessdude1987"]
[Black "Skatchkov_V"]
[Result "0-1"]
[WhiteElo "2290"]
[BlackElo "2600"]
[TimeControl "180+1"]
[EndTime "10:03:51 PDT"]
[Termination "Skatchkov_V won by resignation"]

1. d4 {[%clk 0:03:00.9]} 1... d5 {[%clk 0:03:00]} 2. Nf3 {[%clk 0:03:00.8]} 2...
c6 {[%clk 0:03:00.5]} 3. g3 {[%clk 0:02:59.4]} 3... Nf6 {[%clk 0:03:01]} 4. Bg2
{[%clk 0:02:59.6]} 4... Bf5 {[%clk 0:03:01.7]} 5. O-O {[%clk 0:02:59.5]} 5... e6
{[%clk 0:03:02.4]} 6. Nbd2 {[%clk 0:02:57.7]} 6... h6 {[%clk 0:03:02.3]} 7. c4
{[%clk 0:02:57.4]} 7... Nbd7 {[%clk 0:03:02.8]} 8. b3 {[%clk 0:02:57.5]} 8...
Bd6 {[%clk 0:03:02.2]} 9. Bb2 {[%clk 0:02:57.6]} 9... O-O {[%clk 0:03:02.9]} 10.
Ne5 {[%clk 0:02:57.2]} 10... Bxe5 {[%clk 0:02:51.7]} 11. dxe5 {[%clk 0:02:57.2]}
11... Ng4 {[%clk 0:02:52.2]} 12. Nf3 {[%clk 0:02:51.9]} 12... Be4 {[%clk
0:02:52.6]} 13. Re1 {[%clk 0:02:37.6]} 13... h5 {[%clk 0:02:38.4]} 14. h3 {[%clk
0:02:35.9]} 14... Nh6 {[%clk 0:02:39]} 15. Nd4 {[%clk 0:02:22.6]} 15... Bxg2
{[%clk 0:02:39]} 16. Kxg2 {[%clk 0:02:22.4]} 16... Nxe5 {[%clk 0:02:31.9]} 17.
Nxe6 {[%clk 0:02:21.1]} 17... fxe6 {[%clk 0:02:32.1]} 18. Bxe5 {[%clk
0:02:21.1]} 18... Qg5 {[%clk 0:02:32.8]} 19. f4 {[%clk 0:02:16.3]} 19... Qg6
{[%clk 0:02:31.4]} 20. Qd3 {[%clk 0:02:13.4]} 20... Nf5 {[%clk 0:02:31.6]} 21.
e4 {[%clk 0:02:09.8]} 21... dxe4 {[%clk 0:02:31.7]} 22. Qc3 {[%clk 0:01:54.8]}
22... Rad8 {[%clk 0:02:28.9]} 23. Rad1 {[%clk 0:01:49.6]} 23... Nh4+ {[%clk
0:02:23.4]} 24. Kh1 {[%clk 0:01:45.6]} 24... Nf3 {[%clk 0:02:23.1]} 25. Rg1
{[%clk 0:01:12.5]} 25... Rxd1 {[%clk 0:02:22.6]} 26. Rxd1 {[%clk 0:01:12.6]}
26... Qxg3 {[%clk 0:02:22.7]} 27. f5 {[%clk 0:01:05.8]} 27... Qxh3+ {[%clk
0:02:22.4]} 0-1

[Event "*** Titled Tuesday Blitz"]
[Site "Chess.com"]
[Date "2021.04.06"]
[Round "1"]
[White "The_filthy"]
[Black "Kildepiotr"]
[Result "1/2-1/2"]
[WhiteElo "2357"]
[BlackElo "2648"]
[TimeControl "180+1"]
[EndTime "10:03:54 PDT"]
[Termination "Game drawn by repetition"]

1. e4 {[%clk 0:03:00.9]} 1... g6 {[%clk 0:02:59.2]} 2. d4 {[%clk 0:03:00.1]}
2... Bg7 {[%clk 0:02:59.6]} 3. Nc3 {[%clk 0:03:00.6]} 3... c6 {[%clk 0:02:59.7]}
4. Be3 {[%clk 0:02:58.3]} 4... d5 {[%clk 0:02:59.5]} 5. Nf3 {[%clk 0:02:55.4]}
5... dxe4 {[%clk 0:02:58.7]} 6. Nxe4 {[%clk 0:02:56.3]} 6... Nf6 {[%clk
0:02:59.1]} 7. Nxf6+ {[%clk 0:02:55.6]} 7... Bxf6 {[%clk 0:03:00]} 8. Bh6 {[%clk
0:02:55.2]} 8... Be6 {[%clk 0:02:59.4]} 9. Be2 {[%clk 0:02:53.6]} 9... Nd7
{[%clk 0:02:59]} 10. O-O {[%clk 0:02:53.2]} 10... Nb6 {[%clk 0:02:58.3]} 11. c3
{[%clk 0:02:46.9]} 11... Bc4 {[%clk 0:02:54.9]} 12. b3 {[%clk 0:02:29.9]} 12...
Bxe2 {[%clk 0:02:54.1]} 13. Qxe2 {[%clk 0:02:30.8]} 13... Qd7 {[%clk 0:02:45.8]}
14. Ne5 {[%clk 0:02:19.4]} 14... Bxe5 {[%clk 0:02:45.3]} 15. Qxe5 {[%clk
0:02:14.9]} 15... O-O-O {[%clk 0:02:44.3]} 16. Rfe1 {[%clk 0:02:05.7]} 16... Nd5
{[%clk 0:02:40]} 17. c4 {[%clk 0:01:50.4]} 17... f6 {[%clk 0:02:39.8]} 18. Qe2
{[%clk 0:01:43.8]} 18... Nc7 {[%clk 0:02:34]} 19. Qxe7 {[%clk 0:01:40]} 19...
Qxd4 {[%clk 0:02:31.1]} 20. Be3 {[%clk 0:01:34.1]} 20... Qd6 {[%clk 0:02:20.1]}
21. Bxa7 {[%clk 0:01:25.4]} 21... Rhe8 {[%clk 0:02:15.6]} 22. Qxd6 {[%clk
0:01:22]} 22... Rxe1+ {[%clk 0:02:12.5]} 23. Rxe1 {[%clk 0:01:22.6]} 23... Rxd6
{[%clk 0:02:13]} 24. Kf1 {[%clk 0:01:12.2]} 24... Rd2 {[%clk 0:02:07.7]} 25. Re2
{[%clk 0:01:11.8]} 25... Rd1+ {[%clk 0:02:03.5]} 26. Re1 {[%clk 0:01:10.9]}
26... Rd2 {[%clk 0:02:04.4]} 27. Re2 {[%clk 0:01:11.1]} 27... Rd1+ {[%clk
0:02:04.8]} 28. Re1 {[%clk 0:01:11.4]} 28... Rd2 {[%clk 0:02:05.2]} 1/2-1/2

[Event "*** Titled Tuesday Blitz"]
[Site "Chess.com"]
[Date "2021.04.06"]
[Round "1"]
[White "friesnielsen2302"]
[Black "Susik_Gaboyan"]
[Result "0-1"]
[WhiteElo "2554"]
[BlackElo "2275"]
[TimeControl "180+1"]
[EndTime "10:04:08 PDT"]
[Termination "Susik_Gaboyan won by checkmate"]

1. e4 {[%clk 0:00:17.1]} 1... c6 {[%clk 0:02:58.2]} 2. d3 {[%clk 0:00:17.3]}
2... d5 {[%clk 0:02:59.1]} 3. Nd2 {[%clk 0:00:17.6]} 3... e5 {[%clk 0:02:58.5]}
4. Ngf3 {[%clk 0:00:18]} 4... Bd6 {[%clk 0:02:58.8]} 5. Be2 {[%clk 0:00:18.6]}
5... Nf6 {[%clk 0:02:59.2]} 6. O-O {[%clk 0:00:19.3]} 6... O-O {[%clk 0:02:59]}
7. b3 {[%clk 0:00:19.9]} 7... dxe4 {[%clk 0:02:58.2]} 8. dxe4 {[%clk 0:00:18.6]}
8... Bg4 {[%clk 0:02:58.4]} 9. h3 {[%clk 0:00:17.7]} 9... Bh5 {[%clk 0:02:58.1]}
10. Nh4 {[%clk 0:00:17]} 10... Bg6 {[%clk 0:02:52.3]} 11. Nf5 {[%clk 0:00:16]}
11... Bb4 {[%clk 0:02:45.2]} 12. Ng3 {[%clk 0:00:14.8]} 12... Bc3 {[%clk
0:02:41.3]} 13. Rb1 {[%clk 0:00:14.5]} 13... Bxd2 {[%clk 0:02:33.2]} 14. Bxd2
{[%clk 0:00:14]} 14... Nxe4 {[%clk 0:02:33.2]} 15. Nxe4 {[%clk 0:00:13.3]} 15...
Bxe4 {[%clk 0:02:34.1]} 16. Bc3 {[%clk 0:00:13.3]} 16... Qe7 {[%clk 0:02:32.4]}
17. Re1 {[%clk 0:00:12]} 17... Qg5 {[%clk 0:02:30.5]} 18. Qc1 {[%clk 0:00:11.9]}
18... Qxg2# {[%clk 0:02:29.8]} 0-1

[Event "*** Titled Tuesday Blitz"]
[Site "Chess.com"]
[Date "2021.04.06"]
[Round "1"]
[White "schondeln"]
[Black "AndrewMaco"]
[Result "1-0"]
[WhiteElo "2379"]
[BlackElo "2653"]
[TimeControl "180+1"]
[EndTime "10:04:11 PDT"]
[Termination "schondeln won by resignation"]

1. e4 {[%clk 0:03:00.4]} 1... c5 {[%clk 0:02:48]} 2. Nf3 {[%clk 0:03:00.1]} 2...
d6 {[%clk 0:02:48]} 3. Bc4 {[%clk 0:02:59.9]} 3... Nc6 {[%clk 0:02:47.5]} 4. O-O
{[%clk 0:02:59.3]} 4... Nf6 {[%clk 0:02:47.5]} 5. Re1 {[%clk 0:02:59.3]} 5... e6
{[%clk 0:02:46.9]} 6. Bb3 {[%clk 0:02:59]} 6... a6 {[%clk 0:02:45.7]} 7. c3
{[%clk 0:02:58.4]} 7... b5 {[%clk 0:02:44.2]} 8. d4 {[%clk 0:02:58.3]} 8... cxd4
{[%clk 0:02:42.1]} 9. cxd4 {[%clk 0:02:59.2]} 9... Bb7 {[%clk 0:02:42.3]} 10.
Nc3 {[%clk 0:02:58.3]} 10... Be7 {[%clk 0:02:42.2]} 11. d5 {[%clk 0:02:58]}
11... exd5 {[%clk 0:02:38.3]} 12. Nxd5 {[%clk 0:02:57.2]} 12... O-O {[%clk
0:02:33.7]} 13. Bf4 {[%clk 0:02:42.8]} 13... Na5 {[%clk 0:02:28.8]} 14. Nxe7+
{[%clk 0:02:39.4]} 14... Qxe7 {[%clk 0:02:29.3]} 15. Bxd6 {[%clk 0:02:39.4]}
15... Qe8 {[%clk 0:02:26.3]} 16. Bxf8 {[%clk 0:02:39.1]} 16... Qxf8 {[%clk
0:02:27.2]} 17. Bc2 {[%clk 0:02:20.8]} 17... Nc4 {[%clk 0:02:21.8]} 18. b3
{[%clk 0:02:16.8]} 18... Na3 {[%clk 0:01:46.5]} 19. Bd3 {[%clk 0:02:16]} 19...
Rd8 {[%clk 0:01:44.6]} 20. Qe2 {[%clk 0:02:11.4]} 20... h6 {[%clk 0:01:43.3]}
21. Rad1 {[%clk 0:02:09.1]} 21... Re8 {[%clk 0:01:43.2]} 22. e5 {[%clk
0:01:55.8]} 22... Ng4 {[%clk 0:01:05.9]} 23. Be4 {[%clk 0:01:51.9]} 23... Bxe4
{[%clk 0:01:02.6]} 24. Qxe4 {[%clk 0:01:51.8]} 24... f5 {[%clk 0:01:03.5]} 25.
Qd5+ {[%clk 0:01:48.1]} 1-0

[Event "*** Titled Tuesday Blitz"]
[Site "Chess.com"]
[Date "2021.04.06"]
[Round "1"]
[White "dennisodessa"]
[Black "AlexPapasimakopoulos"]
[Result "0-1"]
[WhiteElo "2318"]
[BlackElo "2614"]
[TimeControl "180+1"]
[EndTime "10:04:20 PDT"]
[Termination "AlexPapasimakopoulos won on time"]

1. d4 {[%clk 0:02:54.8]} 1... f5 {[%clk 0:02:57.3]} 2. c4 {[%clk 0:02:55.2]}
2... Nf6 {[%clk 0:02:56.9]} 3. Nc3 {[%clk 0:02:56.1]} 3... d6 {[%clk 0:02:57.5]}
4. g3 {[%clk 0:02:56.5]} 4... g6 {[%clk 0:02:58]} 5. Bg2 {[%clk 0:02:57]} 5...
Bg7 {[%clk 0:02:58.7]} 6. Nf3 {[%clk 0:02:57.7]} 6... O-O {[%clk 0:02:58.1]} 7.
O-O {[%clk 0:02:58.1]} 7... e6 {[%clk 0:02:58.6]} 8. Re1 {[%clk 0:02:56.1]} 8...
Ne4 {[%clk 0:02:53.1]} 9. Qc2 {[%clk 0:02:54.5]} 9... Nxc3 {[%clk 0:02:52.5]}
10. bxc3 {[%clk 0:02:47.4]} 10... Nc6 {[%clk 0:02:53.4]} 11. e4 {[%clk
0:02:47.8]} 11... e5 {[%clk 0:02:53.6]} 12. exf5 {[%clk 0:02:38.5]} 12... Bxf5
{[%clk 0:02:52.8]} 13. Qd2 {[%clk 0:02:38.8]} 13... Qd7 {[%clk 0:02:44.9]} 14.
dxe5 {[%clk 0:02:27.4]} 14... dxe5 {[%clk 0:02:44.2]} 15. Qxd7 {[%clk
0:02:13.2]} 15... Bxd7 {[%clk 0:02:45.1]} 16. Ng5 {[%clk 0:02:13.1]} 16... e4
{[%clk 0:02:31.3]} 0-1

[Event "*** Titled Tuesday Blitz"]
[Site "Chess.com"]
[Date "2021.04.06"]
[Round "1"]
[White "Tejas_Rama"]
[Black "NateSolon"]
[Result "0-1"]
[WhiteElo "2302"]
[BlackElo "2604"]
[TimeControl "180+1"]
[EndTime "10:04:20 PDT"]
[Termination "NateSolon won by resignation"]

1. Nf3 {[%clk 0:02:59.8]} 1... d5 {[%clk 0:02:59.2]} 2. b3 {[%clk 0:02:58.1]}
2... Bf5 {[%clk 0:02:56.2]} 3. Bb2 {[%clk 0:02:56.7]} 3... e6 {[%clk 0:02:56.5]}
4. g3 {[%clk 0:02:54.8]} 4... Nf6 {[%clk 0:02:54.4]} 5. Bg2 {[%clk 0:02:54.9]}
5... c5 {[%clk 0:02:54.3]} 6. O-O {[%clk 0:02:53.3]} 6... Nc6 {[%clk 0:02:53.9]}
7. d4 {[%clk 0:02:46.8]} 7... Rc8 {[%clk 0:02:50.1]} 8. dxc5 {[%clk 0:02:45.5]}
8... Bxc5 {[%clk 0:02:51]} 9. Nbd2 {[%clk 0:02:44.2]} 9... O-O {[%clk
0:02:42.8]} 10. c4 {[%clk 0:02:42.2]} 10... d4 {[%clk 0:02:32.8]} 11. Nh4 {[%clk
0:02:39.7]} 11... Bg4 {[%clk 0:02:31.6]} 12. h3 {[%clk 0:02:38.8]} 12... Bh5
{[%clk 0:02:31.8]} 13. g4 {[%clk 0:02:38.7]} 13... Bg6 {[%clk 0:02:26.1]} 14.
Nxg6 {[%clk 0:02:37]} 14... hxg6 {[%clk 0:02:27]} 15. Ne4 {[%clk 0:02:33.1]}
15... Nxe4 {[%clk 0:02:22]} 16. Bxe4 {[%clk 0:02:34]} 16... f5 {[%clk
0:02:16.5]} 17. Bf3 {[%clk 0:02:26.6]} 17... Qh4 {[%clk 0:02:12]} 18. Kg2 {[%clk
0:02:18.8]} 18... Rcd8 {[%clk 0:01:38.2]} 19. Qd2 {[%clk 0:01:53.4]} 19... Ne5
{[%clk 0:01:29.9]} 20. Qf4 {[%clk 0:01:47.9]} 20... fxg4 {[%clk 0:01:20.4]} 21.
Qxe5 {[%clk 0:01:47.3]} 21... Qxh3+ {[%clk 0:01:20.3]} 22. Kg1 {[%clk
0:01:47.2]} 22... gxf3 {[%clk 0:01:18.9]} 23. exf3 {[%clk 0:01:39]} 23... Bd6
{[%clk 0:01:16.8]} 0-1

[Event "*** Titled Tuesday Blitz"]
[Site "Chess.com"]
[Date "2021.04.06"]
[Round "1"]
[White "SaqoChess_Twitch"]
[Black "ChessWarrior7197"]
[Result "0-1"]
[WhiteElo "2460"]
[BlackElo "2922"]
[TimeControl "180+1"]
[EndTime "10:04:36 PDT"]
[Termination "ChessWarrior7197 won by resignation"]

1. d4 {[%clk 0:03:00.9]} 1... Nf6 {[%clk 0:02:58.8]} 2. e3 {[%clk 0:03:01.8]}
2... c5 {[%clk 0:02:57.2]} 3. Nf3 {[%clk 0:03:02.7]} 3... g6 {[%clk 0:02:57]} 4.
Be2 {[%clk 0:03:03.1]} 4... Bg7 {[%clk 0:02:57.4]} 5. O-O {[%clk 0:03:03.8]}
5... O-O {[%clk 0:02:57.5]} 6. b3 {[%clk 0:03:04.4]} 6... b6 {[%clk 0:02:57.4]}
7. Bb2 {[%clk 0:03:05]} 7... Bb7 {[%clk 0:02:57.9]} 8. Nbd2 {[%clk 0:03:05.7]}
8... d6 {[%clk 0:02:57.7]} 9. c4 {[%clk 0:03:06.3]} 9... Nbd7 {[%clk 0:02:56.9]}
10. Qc2 {[%clk 0:03:06]} 10... e6 {[%clk 0:02:57]} 11. Rac1 {[%clk 0:03:06.4]}
11... Qe7 {[%clk 0:02:56.6]} 12. Rfd1 {[%clk 0:03:06.7]} 12... Rac8 {[%clk
0:02:55.2]} 13. Qb1 {[%clk 0:03:07.3]} 13... Rfd8 {[%clk 0:02:54.9]} 14. Qa1
{[%clk 0:03:07.6]} 14... Ne8 {[%clk 0:02:55.1]} 15. dxc5 {[%clk 0:03:07.5]}
15... bxc5 {[%clk 0:02:55.7]} 16. Nf1 {[%clk 0:03:03.6]} 16... f5 {[%clk
0:02:54.3]} 17. Bxg7 {[%clk 0:03:01.4]} 17... Nxg7 {[%clk 0:02:50.6]} 18. Qc3
{[%clk 0:03:01.4]} 18... g5 {[%clk 0:02:48.7]} 19. Qa5 {[%clk 0:03:00.7]} 19...
g4 {[%clk 0:02:47.4]} 20. Ne1 {[%clk 0:02:59.9]} 20... Ne5 {[%clk 0:02:37.1]}
21. Nd3 {[%clk 0:02:50.1]} 21... Ng6 {[%clk 0:02:37]} 22. Nf4 {[%clk 0:02:48.8]}
22... Nxf4 {[%clk 0:02:32.9]} 23. exf4 {[%clk 0:02:49.7]} 23... Nh5 {[%clk
0:02:28.1]} 24. g3 {[%clk 0:02:48.5]} 24... Nf6 {[%clk 0:02:23.7]} 25. Ne3
{[%clk 0:02:46.9]} 25... h5 {[%clk 0:02:21.2]} 26. h4 {[%clk 0:02:32.4]} 26...
gxh3 {[%clk 0:02:18.1]} 27. Kh2 {[%clk 0:02:31.3]} 27... Ng4+ {[%clk 0:02:18.4]}
28. Nxg4 {[%clk 0:02:12.3]} 28... hxg4 {[%clk 0:02:19.3]} 29. Qc3 {[%clk
0:02:11.8]} 29... e5 {[%clk 0:02:09.6]} 30. fxe5 {[%clk 0:02:09.9]} 30... Qxe5
{[%clk 0:02:09.8]} 31. Qxe5 {[%clk 0:02:07]} 31... dxe5 {[%clk 0:02:10.7]} 32.
Bd3 {[%clk 0:02:07.6]} 32... Bf3 {[%clk 0:02:01.8]} 33. Bxf5 {[%clk 0:02:03.5]}
33... Bxd1 {[%clk 0:02:01.7]} 34. Bxc8 {[%clk 0:02:01.9]} 34... Rd2 {[%clk
0:01:57]} 35. Rxd1 {[%clk 0:01:29.5]} 35... Rxd1 {[%clk 0:01:56.8]} 36. Bxg4
{[%clk 0:01:30.4]} 36... Rd2 {[%clk 0:01:56.9]} 37. Kxh3 {[%clk 0:01:26.6]}
37... Rxf2 {[%clk 0:01:57.1]} 38. Be6+ {[%clk 0:01:16.5]} 38... Kg7 {[%clk
0:01:57]} 39. Kg4 {[%clk 0:01:17.4]} 39... e4 {[%clk 0:01:57.1]} 40. Bd5 {[%clk
0:01:16]} 40... e3 {[%clk 0:01:58]} 41. Bf3 {[%clk 0:01:16.8]} 41... e2 {[%clk
0:01:58.3]} 0-1

[Event "*** Titled Tuesday Blitz"]
[Site "Chess.com"]
[Date "2021.04.06"]
[Round "1"]
[White "DaroZin"]
[Black "steka121"]
[Result "0-1"]
[WhiteElo "2587"]
[BlackElo "2315"]
[TimeControl "180+1"]
[EndTime "10:04:44 PDT"]
[Termination "steka121 won by resignation"]

1. e4 {[%clk 0:03:00.5]} 1... d5 {[%clk 0:02:58.9]} 2. exd5 {[%clk 0:03:00.3]}
2... Qxd5 {[%clk 0:02:59]} 3. d4 {[%clk 0:03:00.4]} 3... Nf6 {[%clk 0:02:58.3]}
4. c4 {[%clk 0:03:00.2]} 4... Qd8 {[%clk 0:02:58.3]} 5. Nc3 {[%clk 0:03:00.1]}
5... c6 {[%clk 0:02:58.6]} 6. Be2 {[%clk 0:02:57.2]} 6... Bf5 {[%clk 0:02:58.5]}
7. Nf3 {[%clk 0:02:56.9]} 7... e6 {[%clk 0:02:58.9]} 8. O-O {[%clk 0:02:56.9]}
8... Be7 {[%clk 0:02:59]} 9. Qb3 {[%clk 0:02:53.7]} 9... Qb6 {[%clk 0:02:58.3]}
10. h3 {[%clk 0:02:51.6]} 10... O-O {[%clk 0:02:58.1]} 11. Bf4 {[%clk
0:02:49.3]} 11... Nbd7 {[%clk 0:02:53.1]} 12. Qxb6 {[%clk 0:02:44]} 12... axb6
{[%clk 0:02:50.7]} 13. a3 {[%clk 0:02:38.7]} 13... Ne4 {[%clk 0:02:46.8]} 14.
Rac1 {[%clk 0:02:32.6]} 14... Nxc3 {[%clk 0:02:40.5]} 15. Rxc3 {[%clk
0:02:33.5]} 15... Bf6 {[%clk 0:02:40.5]} 16. g4 {[%clk 0:02:14.2]} 16... Be4
{[%clk 0:02:37.6]} 17. g5 {[%clk 0:02:10.1]} 17... Bxf3 {[%clk 0:02:36.3]} 18.
Bxf3 {[%clk 0:01:50.8]} 18... Bxd4 {[%clk 0:02:35.3]} 19. Rb3 {[%clk 0:01:46.6]}
19... Nc5 {[%clk 0:02:31.9]} 20. Rxb6 {[%clk 0:01:40.2]} 20... Nd3 {[%clk
0:02:32.1]} 21. Bc7 {[%clk 0:01:38.1]} 21... Bxb6 {[%clk 0:02:26.9]} 22. Bxb6
{[%clk 0:01:39]} 22... Nxb2 {[%clk 0:02:26.4]} 23. Be2 {[%clk 0:01:36.9]} 23...
Na4 {[%clk 0:02:12]} 24. Bc7 {[%clk 0:01:33.5]} 24... Rfc8 {[%clk 0:02:09.9]}
25. Bd6 {[%clk 0:01:23.4]} 25... Rd8 {[%clk 0:02:09.5]} 26. c5 {[%clk
0:01:22.8]} 26... Nc3 {[%clk 0:02:09]} 27. Bd3 {[%clk 0:01:20.1]} 27... Rxa3
{[%clk 0:02:05.1]} 28. Rc1 {[%clk 0:01:08.9]} 28... b5 {[%clk 0:01:50.9]} 0-1

[Event "*** Titled Tuesday Blitz"]
[Site "Chess.com"]
[Date "2021.04.06"]
[Round "1"]
[White "Kobalia"]
[Black "PowerThinking2650"]
[Result "1-0"]
[WhiteElo "2758"]
[BlackElo "2412"]
[TimeControl "180+1"]
[EndTime "10:04:47 PDT"]
[Termination "Kobalia won by resignation"]

1. e4 {[%clk 0:03:00.3]} 1... e5 {[%clk 0:02:59.5]} 2. Nf3 {[%clk 0:02:59.4]}
2... Nc6 {[%clk 0:02:59.3]} 3. Bb5 {[%clk 0:02:58.4]} 3... a6 {[%clk 0:02:58.7]}
4. Ba4 {[%clk 0:02:58.1]} 4... Nf6 {[%clk 0:02:58.7]} 5. O-O {[%clk 0:02:56.6]}
5... Be7 {[%clk 0:02:57.1]} 6. d3 {[%clk 0:02:55.9]} 6... b5 {[%clk 0:02:56]} 7.
Bb3 {[%clk 0:02:54.4]} 7... d6 {[%clk 0:02:55.9]} 8. a3 {[%clk 0:02:53.4]} 8...
O-O {[%clk 0:02:55.7]} 9. Nc3 {[%clk 0:02:52.9]} 9... Bg4 {[%clk 0:02:53.9]} 10.
Be3 {[%clk 0:02:52.4]} 10... Nd4 {[%clk 0:02:53.7]} 11. Bxd4 {[%clk 0:02:52.3]}
11... exd4 {[%clk 0:02:54.2]} 12. Nd5 {[%clk 0:02:52.6]} 12... c5 {[%clk
0:02:54]} 13. h3 {[%clk 0:02:50]} 13... Be6 {[%clk 0:02:54]} 14. Nxf6+ {[%clk
0:02:49.7]} 14... Bxf6 {[%clk 0:02:54.9]} 15. Bxe6 {[%clk 0:02:49.8]} 15... fxe6
{[%clk 0:02:55.8]} 16. a4 {[%clk 0:02:50.1]} 16... b4 {[%clk 0:02:46.3]} 17. Qe2
{[%clk 0:02:47.2]} 17... e5 {[%clk 0:02:43.9]} 18. g3 {[%clk 0:02:42]} 18... Ra7
{[%clk 0:02:37.6]} 19. c3 {[%clk 0:02:27]} 19... dxc3 {[%clk 0:02:15.8]} 20.
bxc3 {[%clk 0:02:25.5]} 20... a5 {[%clk 0:02:16.1]} 21. cxb4 {[%clk 0:02:21.9]}
21... axb4 {[%clk 0:02:15.4]} 22. Nd2 {[%clk 0:02:22]} 22... Qd7 {[%clk
0:01:46.5]} 23. Nc4 {[%clk 0:02:19.9]} 23... Qxh3 {[%clk 0:01:44.6]} 24. a5
{[%clk 0:02:15.2]} 24... Bh4 {[%clk 0:01:37.1]} 25. Qh5 {[%clk 0:02:05.8]} 25...
g5 {[%clk 0:01:25.9]} 26. Nxd6 {[%clk 0:02:04.4]} 26... Rg7 {[%clk 0:00:51.5]}
27. Nf5 {[%clk 0:02:02.1]} 27... Rg6 {[%clk 0:00:49.6]} 28. a6 {[%clk
0:02:01.2]} 1-0

[Event "*** Titled Tuesday Blitz"]
[Site "Chess.com"]
[Date "2021.04.06"]
[Round "1"]
[White "Durarbayli"]
[Black "Sueetin"]
[Result "1-0"]
[WhiteElo "2749"]
[BlackElo "2407"]
[TimeControl "180+1"]
[EndTime "10:04:54 PDT"]
[Termination "Durarbayli won by resignation"]

1. e4 {[%clk 0:02:00.1]} 1... e6 {[%clk 0:03:00]} 2. d4 {[%clk 0:01:59.2]} 2...
d5 {[%clk 0:03:00.4]} 3. e5 {[%clk 0:01:59.3]} 3... c5 {[%clk 0:02:59.4]} 4. c3
{[%clk 0:02:00.2]} 4... Nc6 {[%clk 0:02:59.8]} 5. Nf3 {[%clk 0:02:00.4]} 5...
Qb6 {[%clk 0:02:59.7]} 6. Be2 {[%clk 0:01:59.2]} 6... Bd7 {[%clk 0:02:53.4]} 7.
O-O {[%clk 0:01:56.9]} 7... Rc8 {[%clk 0:02:33]} 8. dxc5 {[%clk 0:01:49.3]} 8...
Bxc5 {[%clk 0:02:32.7]} 9. b4 {[%clk 0:01:41.6]} 9... Bf8 {[%clk 0:02:25.1]} 10.
Na3 {[%clk 0:01:08.2]} 10... Nge7 {[%clk 0:02:20.1]} 11. Be3 {[%clk 0:01:05.8]}
11... Qd8 {[%clk 0:02:19.8]} 12. Bg5 {[%clk 0:01:05.7]} 12... h6 {[%clk
0:02:11.8]} 13. Nb5 {[%clk 0:01:05]} 13... Qb6 {[%clk 0:01:19.2]} 14. Nd6+
{[%clk 0:01:02.8]} 14... Kd8 {[%clk 0:01:19.6]} 15. Nxf7+ {[%clk 0:01:00.9]}
15... Ke8 {[%clk 0:01:19.8]} 16. Nd6+ {[%clk 0:01:00.7]} 16... Kd8 {[%clk
0:01:19.3]} 17. Be3 {[%clk 0:00:56.3]} 17... Qc7 {[%clk 0:01:17.6]} 18. Nf7+
{[%clk 0:00:54.6]} 18... Ke8 {[%clk 0:01:18.1]} 19. Nxh8 {[%clk 0:00:54.3]}
19... Nxe5 {[%clk 0:01:15.7]} 20. Nxe5 {[%clk 0:00:54]} 20... Qxe5 {[%clk
0:01:16.6]} 21. Bh5+ {[%clk 0:00:52.2]} 1-0